[Event "SixDays Budapest March GM-A 2023"]
[Site "Budapest"]
[Date "2023.03.25"]
[Round "2.1"]
[White "Rosh Jain"]
[Black "Bodi, Tibor"]
[Result "1/2-1/2"]
[ECO "B09"]
[WhiteElo "2325"]
[BlackElo "2356"]
[Annotator "TA"]
[PlyCount "106"]
[EventDate "2023.03.24"]
[EventType "tourn"]
[EventCountry "HUN"]
[SourceTitle "playchess.com"]
[Source "ChessBase"]
[SourceQuality "1"]
[TimeControl "5400+30"]

{[%evp 15,106,29,46,16,16,16,45,39,61,57,60,61,98,43,27,31,40,0,-1,-33,-35,-29,0,0,0,-54,-54,-52,-45,-36,18,0,0,0,0,0,4,6,8,0,10,0,0,0,0,0,0,0,0,0,0,0,0,0,0,-8,-8,-8,-8,-8,-8,-8,0,0,0,0,0,0,0,0,0,0,0,0,0,0,32,0,0,0,0,0,8,8,8,0,0,0,0,0,0,0,0]} 1. e4 {[%emt 0:00:32][%cal Be2e4,Be4e5][%mdl 32]} g6 {[%emt 0:00:58]} 2. d4 {[%emt 0:00:14]} Bg7 {[%emt 0:00:03]} 3. Nc3 {[%emt 0:00:30]} d6 {[%emt 0:00:34]} 4. f4 {[%emt 0:00:38]} Nf6 {[%emt 0:00:46]} 5. Nf3 {[%emt 0:00:21]} O-O {[%emt 0:00:13]} 6. e5 {[%emt 0:00:05]} Nfd7 {[%emt 0:01:17]} 7. Bc4 {[%emt 0:00:43]} Nb6 {[%emt 0:00:12] 7...c5 is more fashionable.} 8. Bb3 {[%emt 0:00:15]} Nc6 {[%emt 0:03:51]} 9. Be3 {[%emt 0:01:32] B09: Pirc Defence: Austrian Attack.} Na5 {[%emt 0:00:32]} 10. Qe2 {[%emt 0:02:54]} d5 {[%emt 0:02:37] [#]} 11. Nd2 $146 {[%emt 0:01:46] White is slightly better.} ({Predecessor:} 11. O-O Bg4 12. h3 Bxf3 13. Rxf3 Nxb3 14. axb3 f5 15. Bf2 e6 16. Qe1 Qd7 17. Ne2 {½-½ Hamann,C (2114)-Neumann,F (2028) Oberliga Nord N 1415 2014 (1.7)}) 11... Qd7 {[%emt 0:16:52]} 12. h3 {[%emt 0:07:09]} Qc6 {[%emt 0:09:03]} 13. g4 {[%emt 0:10:36]} Nac4 {[%emt 0:02:47]} 14. Bxc4 {[%emt 0:02:17]} (14. O-O-O $16) 14... dxc4 $14 {[%emt 0:00:58]} 15. O-O-O {[%emt 0:00:46]} f5 {[%emt 0:03:23] Inhibits Nde4.} 16. Nf3 {[%emt 0:19:55]} Nd5 $1 {[%emt 0:00:44]} ({Don't play} 16... fxg4 17. hxg4 Bxg4 18. d5 $16) 17. Nxd5 {[%emt 0:00:53]} Qxd5 {[%emt 0:00:01]} 18. Nh4 {[%emt 0:02:53]} b5 {[%emt 0:01:43]} 19. gxf5 {[%emt 0:04:10]} Rxf5 {[%emt 0:03:45]} 20. Qf3 {[%emt 0:08:52] Inhibits Rh5.} (20. Nxf5 $11 Bxf5 21. Kb1) 20... Qxf3 $15 {[%emt 0:00:46]} 21. Nxf3 {[%emt 0:00:04]} Bb7 {[%emt 0:01:36]} 22. d5 {[%emt 0:01:13] [#]} c5 {[%emt 0:23:11] Against Nd4} 23. dxc6 {[%emt 0:02:15]} (23. Ng5 {is interesting.} Rd8 24. Bxc5 Bxd5 25. Bxe7 Rd7 26. Ba3) 23... Bxc6 {[%emt 0:00:09]} 24. Nd4 {[%emt 0:00:05][%csl LRc6,LRf5]} Bxh1 {[%emt 0:00:14]} 25. Nxf5 {[%emt 0:00:05]} gxf5 {[%emt 0:01:15]} 26. Rxh1 $11 {[%emt 0:00:09][%mdl 4096] Endgame KRB-KRB} Kf7 {[%emt 0:00:09]} 27. Rd1 {[%emt 0:01:30]} Ke6 {[%emt 0:00:22] Wards off Rd5} 28. Rd2 {[%emt 0:00:16]} Bh6 {[%emt 0:00:34]} 29. Rd4 {[%emt 0:05:02]} Rg8 {[%emt 0:01:13]} 30. a4 {[%emt 0:01:15]} a6 {[%emt 0:00:14]} 31. axb5 {[%emt 0:00:57]} axb5 {[%emt 0:00:01]} 32. b3 {[%emt 0:01:13]} cxb3 {[%emt 0:05:45]} (32... Rg3 $5 33. Kd2 $8 cxb3 34. cxb3 Rxh3 $11) 33. cxb3 {[%emt 0:00:06]} Rg3 {[%emt 0:01:10][%csl LRe3,LRh3]} 34. Kd2 {[%emt 0:00:07]} Rxh3 {[%emt 0:00:10]} 35. Rb4 {[%emt 0:02:07]} Kd5 {[%emt 0:04:08]} 36. Rd4+ {[%emt 0:03:13]} Kc6 {[%emt 0:00:07]} 37. Ke2 {[%emt 0:01:17]} Rh2+ {[%emt 0:02:33]} 38. Kf3 {[%emt 0:00:38]} Bg7 {[%emt 0:04:36]} 39. Rd8 {[%emt 0:00:22]} Rh3+ {[%emt 0:00:25]} 40. Kf2 {[%emt 0:00:08]} Rh6 {[%emt 0:00:22]} 41. Kf3 {[%emt 0:02:46]} Rg6 {[%emt 0:01:17]} 42. Rb8 {[%emt 0:00:07]} e6 {[%emt 0:01:39]} 43. Rb6+ {[%emt 0:00:15]} Kc7 {[%emt 0:00:04]} 44. Rxb5 {[%emt 0:00:08]} h5 {[%emt 0:00:42]} 45. Rc5+ {[%emt 0:00:16]} Kd7 {[%emt 0:00:31]} 46. Rc2 {[%emt 0:04:38] Strongly threatening b4.} (46. b4 $5 {[%cal Rb4b5]} h4 47. b5 Rg3+ 48. Ke2 Rg2+ 49. Bf2 $11) 46... h4 {[%emt 0:00:26] The position is equal.} 47. Rg2 {[%emt 0:00:28]} Rxg2 {[%emt 0:00:34]} 48. Kxg2 {[%emt 0:00:05] KB-KB} Kc6 {[%emt 0:01:25]} 49. Kh3 {[%emt 0:00:06]} Kd5 {[%emt 0:00:20]} 50. Kxh4 {[%emt 0:00:12] b4 would be deadly.} Ke4 {[%emt 0:00:08]} 51. Bc1 {[%emt 0:00:20] Black must now prevent b4.} Bh6 {[%emt 0:00:17]} 52. Kg3 {[%emt 0:00:11] Hoping for b4.} Bf8 {[%emt 0:00:10]} 53. Bd2 {[%emt 0:00:36]} Be7 {[%emt 0:02:01] Weighted Error Value: White=0.08 (flawless) /Black=0.08 (flawless)} 1/2-1/2

[Event "SixDays Budapest March GM-A 2023"]
[Site "Budapest"]
[Date "2023.03.25"]
[Round "2.2"]
[White "Sammed Jaykumar, Shete"]
[Black "Pfreundt, Jakob"]
[Result "1/2-1/2"]
[ECO "D02"]
[WhiteElo "2454"]
[BlackElo "2407"]
[Annotator "TA"]
[PlyCount "119"]
[EventDate "2023.03.24"]
[EventType "tourn"]
[EventCountry "HUN"]
[SourceTitle "playchess.com"]
[Source "ChessBase"]
[SourceQuality "1"]
[TimeControl "5400+30"]

{[%evp 9,119,0,8,-3,6,4,4,0,1,-15,-5,-8,0,-20,-12,-5,0,0,0,-8,0,0,0,-8,-14,-14,-2,-7,0,0,0,-36,0,0,-10,-20,-26,-22,-18,-17,0,0,0,0,0,-4,-2,-49,-28,-39,-8,-12,0,0,0,0,90,0,0,0,17,0,164,172,167,0,12,0,0,0,94,0,0,0,355,0,0,-147,-2,-15,0,0,388,366,374,0,0,0,0,0,0,-126,-147,-115,-103,-742,-103,-91,-50,-596,-910,-889,-600,-567,-538,-6203,-1358,-1152,0,-7236,0,-804]} 1. Nf3 {[%emt 0:00:36]} d5 {[%emt 0:03:03]} 2. d4 {[%emt 0:00:14]} Nf6 {[%emt 0:00:29]} 3. c3 {[%emt 0:00:08]} e6 {[%emt 0:02:22]} 4. Bf4 {[%emt 0:00:09]} Bd6 {[%emt 0:00:33]} 5. e3 {[%emt 0:00:08]} O-O {[%emt 0:01:49]} 6. Nbd2 {[%emt 0:01:20] D02: 1 d4 d5 2 Nf3 sidelines, including 2...Nf6 3 g3 and 2...Nf6 3 Bf4.} Bxf4 {[%emt 0:05:41]} 7. exf4 {[%emt 0:00:07]} b6 {[%emt 0:00:08]} 8. h4 {[%emt 0:05:34]} c5 {[%emt 0:08:56]} 9. Bd3 {[%emt 0:05:24]} Ba6 {[%emt 0:00:59]} 10. Bxa6 {[%emt 0:01:15]} Nxa6 {[%emt 0:00:06]} 11. Qe2 {[%emt 0:00:09] [#]} Nb8 $146 {[%emt 0:02:59]} ({Predecessor:} 11... Qc8 12. h5 h6 13. Nb3 cxd4 14. Nbxd4 Nc5 15. Ne5 Qa6 16. Qxa6 Nxa6 17. g4 Nc5 {1-0 Nihal,S (2654)-Sadhwani,R (2619) MPL Indian Chess Tour N2 rapid 2022 (15)}) 12. h5 {[%emt 0:01:36][%cal Bh4h5,Bh5h6][%mdl 32]} Nc6 {[%emt 0:08:21]} 13. h6 {[%emt 0:02:08] Strongly threatening hxg7.} g6 {[%emt 0:00:07]} 14. Ne5 {[%emt 0:01:41]} Rc8 {[%emt 0:02:07]} 15. Nxc6 {[%emt 0:08:09]} Rxc6 {[%emt 0:00:03]} 16. Qe5 {[%emt 0:00:09]} Ne8 {[%emt 0:03:03]} 17. Nf3 {[%emt 0:00:13]} f6 {[%emt 0:03:23]} 18. Qe3 {[%emt 0:01:45]} Qd7 {[%emt 0:02:37]} 19. O-O-O {[%emt 0:01:53]} Nd6 {[%emt 0:01:19]} 20. Qe2 {[%emt 0:01:54]} b5 {[%emt 0:20:24]} 21. dxc5 {[%emt 0:01:53]} Rxc5 {[%emt 0:00:12] White should prevent ...b4.} 22. Rhe1 {[%emt 0:00:20][%cal Of3d4]} Re8 {[%emt 0:00:58]} 23. Kb1 {[%emt 0:02:26]} Rc4 {[%emt 0:02:01]} 24. g3 {[%emt 0:14:22]} a5 {[%emt 0:06:26]} 25. Nd2 {[%emt 0:01:57]} Rcc8 {[%emt 0:01:24]} 26. Qd3 {[%emt 0:00:14]} Qa7 {[%emt 0:01:10]} 27. Re2 {[%emt 0:06:42]} b4 {[%emt 0:03:59]} 28. Rc1 {[%emt 0:05:34]} (28. cxb4 $11 axb4 29. Rde1) 28... Kf7 {[%emt 0:03:38]} 29. Nf3 {[%emt 0:03:34]} bxc3 {[%emt 0:01:12]} 30. Rxc3 {[%emt 0:00:07]} Rxc3 {[%emt 0:01:38]} 31. Qxc3 {[%emt 0:00:07][%cal Of3g5]} Re7 {[%emt 0:04:51]} 32. Rc2 {[%emt 0:01:13]} Nc4 {[%emt 0:00:59]} (32... Qa6 $1 $11 {remains equal.}) 33. g4 {[%emt 0:06:43]} (33. a4 $1 $16) 33... Qc7 $11 {[%emt 0:00:47]} 34. Qd4 {[%emt 0:00:08] Black must now prevent g5.} Qa7 {[%emt 0:01:08]} (34... Qb7 $5 {[%cal Rc4a3]} 35. Qd3 e5 36. fxe5 fxe5 37. Ng5+ Kf6 $11) 35. Qd3 {[%emt 0:00:05]} Qb7 $2 {[%emt 0:04:57]} (35... Qc7 $11 36. f5 Qf4) 36. g5 $1 $18 {[%emt 0:00:44]} fxg5 {[%emt 0:01:27]} 37. fxg5 {[%emt 0:03:50]} (37. Nxg5+ $18 Ke8 38. Ka1) 37... e5 $1 $11 {[%emt 0:00:56][%cal Be6e5,Be5e4][%mdl 32]} 38. Nh2 {[%emt 0:04:19]} (38. Nd2 {simplifies} Nxd2+ 39. Qxd2 Ke6 40. Qxa5 Kf5 41. Rc1) 38... e4 $1 $36 {[%emt 0:02:37][%mdl 2048] Black has some pressure.} 39. Qc3 {[%emt 0:00:04]} Ne5 {[%emt 0:00:13]} (39... Qb4 $11) 40. f4 {[%emt 0:10:12]} (40. Qxa5 $16 Ke6 41. Nf1) 40... Nc4 $1 {[%emt 0:00:07]} 41. Ng4 {[%emt 0:00:54][%cal Of4f5] aiming for f5!} Ke6 {[%emt 0:01:13][%mdl 8192]} (41... Qb4 $1 $11 {and Black has nothing to worry.} 42. Qg7+ Ke6 43. Qg8+ Kd6 44. Qd8+ Ke6 45. Qc8+ (45. Re2 $2 Qc5 $19) 45... Kf7) 42. Ka1 $2 {[%emt 0:01:40]} (42. Qf6+ $18 Kd7 43. Rxc4 dxc4 44. Ne5+ Rxe5 45. Qxe5) 42... Qb4 $1 {[%emt 0:00:24]} 43. Qg3 {[%emt 0:03:21]} (43. Qf6+ $11 Kd7 44. a3) 43... a4 {[%emt 0:00:18]} (43... Qb6 $1 $17 {...Qd4 would be deadly.} 44. Nf6 Qd4 45. Qh3+ Kd6) 44. Ne3 {[%emt 0:01:00]} Nxe3 {[%emt 0:00:23]} (44... Qc5 {feels hotter.} 45. Rc3 a3 46. Nxc4 dxc4 47. Rxa3 Rd7) 45. Qxe3 {[%emt 0:00:04][%mdl 4096] Endgame Rc6+ is the strong threat. KQR-KQR} Kd6 {[%emt 0:00:50][%mdl 8192] [#] Dodges Rc6+} (45... Kf7 $11 {and Black stays safe.}) 46. a3 $1 $18 {[%emt 0:02:33]} d4 {[%emt 0:00:16][%cal Bd5d4,Bd4d3,Bd3d2][%mdl 32]} 47. Qc1 {[%emt 0:01:28]} ({White must play} 47. Rd2 $18 Kc6 48. Rxd4 (48. Qxd4 $2 {loses.} Qxd4 {[%mdl 64] Remove Defender} 49. Rxd4 e3 $19)) 47... Qb6 {[%emt 0:00:18]} 48. f5 {[%emt 0:00:04]} gxf5 {[%emt 0:00:41]} 49. g6 {[%emt 0:00:03]} hxg6 {[%emt 0:00:27]} 50. Rh2 {[%emt 0:01:51]} (50. Rg2 $11 {keeps the balance.} Kd5 51. Qc8) 50... Rh7 $17 {[%emt 0:00:23] Hoping for ...d3.} 51. Qc4 {[%emt 0:00:43]} d3 {[%emt 0:00:40]} 52. Rh1 {[%emt 0:00:04][%mdl 8192] Wards off Qg1+} (52. Qg8 $17 Qg1+ 53. Ka2) 52... Ke5 $2 {[%emt 0:00:38]} (52... Rb7 53. Qc3 Rh7 54. Qf6+ Kc7 55. Qe5+ Kb7 56. Rc1 $11) (52... d2 $19 {and Black stays clearly on top.} 53. Qg8 Qc7 54. Qxg6+ Ke5 55. Qe8+ Re7 56. Qb5+ Kf6) 53. Qg8 {[%emt 0:00:30] [#]} Qc7 {[%emt 0:00:25]} 54. Qxg6 $2 {[%emt 0:00:11][%mdl 8192]} (54. Qe8+ $1 $15 Kd4 55. Qxa4+ Ke3 56. Re1+ Kf3 57. Qd1+ Kf4 58. Qd2+ Ke5 59. Rc1) 54... d2 $19 {[%emt 0:00:27]} ({Inferior is} 54... Qd7 55. Qg3+ Kd5 56. Qg8+ Qf7 57. Qd8+ Ke6 58. Rc1 $11) 55. Kb1 {[%emt 0:00:23] Against Qc1+} Qd7 {[%emt 0:00:23]} 56. Qg3+ {[%emt 0:01:01]} Ke6 {[%emt 0:00:39]} 57. Kc2 {[%emt 0:00:38]} Qc6+ {[%emt 0:00:45]} (57... Qc8+ $142 58. Qc3 Rc7) 58. Kb1 {[%emt 0:00:07]} Qd7 {[%emt 0:00:13]} (58... Rc7 $142 59. Qg8+ Ke5) 59. Kc2 $1 {[%emt 0:00:21]} Qc6+ {[%emt 0:00:36]} (59... Qc8+ $142 60. Qc3 Rc7) 60. Kb1 $1 {[%emt 0:00:04][%mdl 32768] What a fight!   Weighted Error Value: White=0.53/Black=0.71. An unexpected result.} 1/2-1/2

[Event "SixDays Budapest March GM-A 2023"]
[Site "Budapest"]
[Date "2023.03.25"]
[Round "2.3"]
[White "Arfan, Aditya Bagus"]
[Black "Berczes, David"]
[Result "1/2-1/2"]
[ECO "A05"]
[WhiteElo "2374"]
[BlackElo "2427"]
[Annotator "TA"]
[PlyCount "85"]
[EventDate "2023.03.24"]
[EventType "tourn"]
[EventCountry "HUN"]
[SourceTitle "playchess.com"]
[Source "ChessBase"]
[SourceQuality "1"]
[TimeControl "5400+30"]

{[%evp 16,85,25,16,22,8,0,10,0,0,8,0,7,14,10,5,13,0,39,49,70,26,41,34,31,17,22,34,14,0,0,0,6,1,12,10,29,28,22,22,35,30,33,33,46,46,45,54,47,55,98,98,93,85,102,100,200,83,78,83,81,73,79,44,39,38,38,0,25,0,38,0]} 1. Nf3 {[%emt 0:09:44]} Nf6 {[%emt 0:18:32]} 2. c4 {[%emt 0:00:06]} b6 {[%emt 0:02:00]} 3. g3 {[%emt 0:00:08]} Bb7 {[%emt 0:00:06]} 4. Bg2 {[%emt 0:00:03]} g6 {[%emt 0:00:41]} 5. b3 {[%emt 0:00:17]} Bg7 {[%emt 0:00:21]} 6. Bb2 {[%emt 0:00:01]} O-O {[%emt 0:00:08]} 7. O-O {[%emt 0:00:05]} c5 {[%emt 0:02:20]} 8. Nc3 {[%emt 0:05:51]} Na6 {[%emt 0:04:54][%cal Bb8a6,Ba6c7,Bc7d5][%mdl 32] 8...d5 gains popularity.} 9. e3 {[%emt 0:10:31]} Ne4 {[%emt 0:15:10] A30: Symmetrical English: Double Fianchetto and Hedgehog.} 10. d4 {[%emt 0:11:49]} Nxc3 {[%emt 0:11:11]} 11. Bxc3 {[%emt 0:00:37] [#]} d5 $146 {[%emt 0:06:03] The position is equal.} ({Predecessor:} 11... Be4 12. Rc1 d6 13. d5 Bxc3 {½-½ Tuomainen,F (2215)-Haug,J (2355) Nordic-ch U20 2018 (5)}) 12. Ne5 {[%emt 0:02:06]} cxd4 {[%emt 0:01:54]} 13. Qxd4 {[%emt 0:01:33][%cal Rc4d5]} Nc7 {[%emt 0:01:20]} 14. Qd2 {[%emt 0:08:01]} Qc8 {[%emt 0:24:38]} 15. cxd5 {[%emt 0:20:12]} Nxd5 {[%emt 0:00:15][%mdl 64] [#] Discovered Attack} 16. Bd4 {[%emt 0:04:56][%cal Oe5f7]} f6 {[%emt 0:04:34]} 17. Rac1 {[%emt 0:07:41]} Qe8 {[%emt 0:00:05] Black is weak on the light squares} 18. Bb2 {[%emt 0:03:16] White has more active pieces.} (18. Nc4 $5 {[%cal Re3e4]}) 18... Rd8 {[%emt 0:02:17] White must now prevent ...Nf4.} 19. e4 {[%emt 0:00:17] [#] Nd3 is the strong threat.} Nc7 {[%emt 0:01:41]} 20. Qc2 {[%emt 0:05:51]} (20. Qe3 $5 {[%cal Rc1c7]} Ne6 21. Nd3 $14) 20... Nb5 {[%emt 0:00:52]} 21. Nc6 {[%emt 0:03:50]} Bxc6 {[%emt 0:00:35]} 22. Qc4+ {[%emt 0:02:01]} Kh8 {[%emt 0:00:18][%cal Od8d2] aiming for ...Rd2!} 23. Qxc6 {[%emt 0:00:01]} Qxc6 {[%emt 0:00:05]} 24. Rxc6 {[%emt 0:00:04]} Rd2 {[%emt 0:01:06]} 25. Rb1 {[%emt 0:01:13]} Rfd8 {[%emt 0:01:16]} (25... f5 $5 {[%cal Rg7b2]} 26. e5 f4 $11) 26. a4 {[%emt 0:02:31]} Nd4 {[%emt 0:00:32]} 27. Bxd4 {[%emt 0:00:01]} R2xd4 {[%emt 0:00:26]} 28. Rc7 {[%emt 0:00:11][%csl LRa7,LRe7]} R4d7 {[%emt 0:00:38]} 29. Rbc1 $36 {[%emt 0:01:08][%mdl 2048] Rxd7 would be deadly. White is pushing.} Bf8 {[%emt 0:00:07]} 30. Bh3 {[%emt 0:00:51]} Rxc7 {[%emt 0:00:08]} 31. Rxc7 $14 {[%emt 0:00:01][%mdl 4096] Endgame KRB-KRB} Rd1+ {[%emt 0:00:42]} 32. Kg2 {[%emt 0:00:00]} e5 {[%emt 0:00:40]} 33. Rxa7 {[%emt 0:00:33]} Bc5 {[%emt 0:00:26]} 34. Rf7 {[%emt 0:00:02]} Rd4 {[%emt 0:00:57]} 35. Rxf6 {[%emt 0:00:26]} Rxe4 {[%emt 0:00:01]} (35... Kg7 $16 36. Rc6 Rd2) 36. Be6 {[%emt 0:01:16]} (36. Rc6 $18 {and the rest is easy.}) 36... Rd4 {[%emt 0:00:13]} 37. Bc4 {[%emt 0:00:43] Hoping for Rc6.} Rd2 {[%emt 0:00:33]} 38. Kf1 {[%emt 0:00:06]} Rb2 {[%emt 0:01:08]} 39. Rf7 {[%emt 0:00:54]} Rb1+ {[%emt 0:00:34]} 40. Kg2 {[%emt 0:00:47]} Rb2 $1 {[%emt 0:00:04]} 41. Kf1 {[%emt 0:00:18]} Rb1+ {[%emt 0:00:02]} 42. Kg2 {[%emt 0:00:04]} Rb2 $1 {[%emt 0:00:08]} 43. Kf1 {[%emt 0:00:06] Weighted Error Value: White=0.10 (very precise) /Black=0.07 (flawless)} 1/2-1/2

[Event "SixDays Budapest March GM-A 2023"]
[Site "Budapest"]
[Date "2023.03.25"]
[Round "2.4"]
[White "Pap, Misa"]
[Black "Leszko, Bence"]
[Result "1-0"]
[ECO "C43"]
[WhiteElo "2403"]
[BlackElo "2283"]
[Annotator "TA"]
[PlyCount "91"]
[EventDate "2023.03.24"]
[EventType "tourn"]
[EventCountry "HUN"]
[SourceTitle "playchess.com"]
[Source "ChessBase"]
[SourceQuality "1"]
[TimeControl "5400+30"]

{[%evp 10,91,35,0,0,0,4,4,4,4,7,1,14,0,22,17,39,34,61,56,54,55,56,46,98,95,97,90,241,241,242,250,233,218,232,231,231,220,206,210,193,221,195,221,214,192,203,186,312,308,372,358,320,258,245,259,254,255,220,162,377,350,1222,1163,1110,1100,1018,887,887,821,1000,792,353,342,1435,737,12834,5427,12837,12838,12837,12838,12838,12838]} 1. e4 {[%emt 0:03:44]} e5 {[%emt 0:03:15]} 2. Nf3 {[%emt 0:00:06]} Nf6 {[%emt 0:00:04]} 3. d4 {[%emt 0:01:24]} Nxe4 {[%emt 0:00:09]} 4. Bd3 {[%emt 0:00:06]} d5 {[%emt 0:00:10]} 5. Nxe5 {[%emt 0:00:06]} Nd7 {[%emt 0:00:05]} 6. Nc3 {[%emt 0:00:53]} Bb4 {[%emt 0:00:05][%cal Bf8b4,Bb4c3,Bc3d4][%mdl 32] C43: Petroff Defence: 3 d4.} 7. O-O {[%emt 0:00:11]} Nxe5 {[%emt 0:00:03]} 8. dxe5 {[%emt 0:00:07]} Nxc3 {[%emt 0:00:03] The position is equal.} 9. bxc3 {[%emt 0:00:08]} Bxc3 {[%emt 0:00:06]} 10. Rb1 {[%emt 0:00:07] [#]} a5 $146 {[%emt 0:00:07]} (10... Bxe5 $2 11. Re1 Qe7 12. Qh5 (12. Bf4 f6 $18) 12... Bxh2+ 13. Kf1 $18) ({Predecessor:} 10... Qh4 11. Ba3 a5 12. Bb5+ c6 13. Qxd5 Bd7 14. Qc5 cxb5 15. e6 fxe6 16. Qxc3 b4 17. Qxg7 {0-1 Grischuk,A (2745)-Paravyan,D (2620) Chess.com Rapid Wk23 Swiss 2022 (8)}) 11. f4 {[%emt 0:08:08][%mdl 1024] White has compensation.} Qh4 {[%emt 0:03:56]} 12. Bd2 {[%emt 0:23:38]} Bd4+ {[%emt 0:09:10]} (12... Bxd2 {simplifies} 13. Qxd2 O-O 14. f5 Qd4+) 13. Kh1 {[%emt 0:00:05]} Bg4 {[%emt 0:00:47]} 14. Qc1 {[%emt 0:03:08]} (14. Be1 {seems wilder.} Qh5 15. Qd2 O-O 16. Rxb7 c6 17. c3) 14... O-O {[%emt 0:02:21]} 15. Be3 {[%emt 0:06:15]} Bxe3 {[%emt 0:27:57]} 16. Qxe3 {[%emt 0:00:15][%cal Of4f5]} Qe7 {[%emt 0:12:00]} (16... Bc8 $1 $14) 17. f5 $36 {[%emt 0:14:25][%mdl 2048] White is really pushing. White is more active.} f6 {[%emt 0:02:24]} 18. Qd4 {[%emt 0:00:36] Threatens to win with exf6.} ({Don't play} 18. Rxb7 fxe5 19. c4 e4 20. cxd5 Bxf5 $15) 18... fxe5 {[%emt 0:05:52] This costs Black the game.} (18... Bh5 $16) 19. Qxg4 $18 {[%emt 0:00:07]} e4 {[%emt 0:00:01]} 20. Be2 {[%emt 0:00:21]} c6 {[%emt 0:00:17]} 21. a4 {[%emt 0:06:55]} Rf7 {[%emt 0:01:38]} 22. Qh3 {[%emt 0:12:35]} Raf8 {[%emt 0:01:17]} 23. g4 {[%emt 0:00:01]} Qe5 {[%emt 0:04:01]} 24. Qg3 {[%emt 0:01:53]} Qxg3 {[%emt 0:04:28]} 25. hxg3 {[%emt 0:00:02]} g6 {[%emt 0:00:22][%cal Rg6f5]} 26. Kg2 {[%emt 0:00:25]} Kg7 {[%emt 0:05:19] [#]} 27. f6+ $1 {[%emt 0:03:08]} Kh6 {[%emt 0:00:49] [#]} 28. Rf4 $1 {[%emt 0:02:30]} Re8 {[%emt 0:08:43]} (28... g5 {is a better defense.}) 29. Kf2 {[%emt 0:03:17]} Re6 {[%emt 0:01:24]} 30. Ke3 {[%emt 0:00:31]} c5 {[%emt 0:00:25]} 31. c3 {[%emt 0:02:01] Rd1 is the strong threat.} Kg5 {[%emt 0:02:35]} 32. Rd1 {[%emt 0:02:19]} Re5 {[%emt 0:00:00]} 33. Rdf1 {[%emt 0:00:01]} Re6 {[%emt 0:01:08]} 34. Bb5 {[%emt 0:01:00]} ({Much less strong is} 34. Rd1 $6 Re5 35. Rb1 Re6) 34... Re5 $2 {[%emt 0:03:27]} (34... Rfxf6 35. Rd1 Rd6) 35. Bd7 {[%emt 0:00:56]} Kh6 $2 {[%emt 0:00:07] [#]} (35... Rxd7 $2 36. f7 d4+ 37. Ke2) (35... h6 36. R4f2 Rxd7) 36. g5+ $1 {[%emt 0:02:46][%mdl 64] Decoy} Kxg5 {[%emt 0:00:56]} 37. Rg4+ {[%emt 0:00:11]} Kh6 {[%emt 0:00:03]} 38. Rh1+ {[%emt 0:00:22]} Rh5 {[%emt 0:00:04]} 39. Rxh5+ {[%emt 0:00:14][%mdl 64] Remove Defender} Kxh5 {[%emt 0:01:24][%mdl 4096] Endgame [#] KRB-KR} 40. Rf4 $1 {[%emt 0:00:12]} Kg5 {[%emt 0:01:33]} 41. Be6 {[%emt 0:00:34][%csl LRd5,LRf7]} d4+ $2 {[%emt 0:00:00]} (41... Rxf6 42. Rxf6 d4+ 43. cxd4 Kxf6) 42. cxd4 {[%emt 0:00:43] White is clearly winning.} cxd4+ {[%emt 0:00:01]} 43. Kxe4 {[%emt 0:00:11]} Rxf6 {[%emt 0:00:08]} 44. Rxf6 {[%emt 0:00:10]} Kxf6 {[%emt 0:00:05]} 45. Bc8 {[%emt 0:00:09]} b6 {[%emt 0:01:17]} 46. Kxd4 {[%emt 0:00:07] Excellently played by Pap!   Weighted Error Value: White=0.11 (very precise) /Black=0.33} 1-0